Cogmind - Beta 12 @@@ ROGUE MODE // 2023.05.14 @ 04:29:52 Player: maxwell Result: Destroyed by as-13982 with Assembled Rifle Performance ------------- Evolutions (1) 500 Regions Visited (4) 800 Robots Destroyed (84) 420 Value Destroyed (1990) 1990 Prototype IDs (4) 80 Alien Tech Used (0) 0 Bonus (71) 71 TOTAL SCORE: 3861 Bonus ------- High Alert Combat Kills 71 Cogmind --------- Core Integrity 0/400 Matter 221/300 Energy 100/100 System Corruption 0% Temperature Cool (0) Movement Core (50) Location -9/Mines Parts ------- > --- POWER (1) -------- (None) > --- PROPULSION (2) --- (None) > --- UTILITY (4) ------ (None) > --- WEAPON (2) ------- (None) > --- INVENTORY (5) ---- Light Treads Armored Wheel Large Matter Pod (20) Hacking Suite EMP Blaster Peak State ------------ > --- POWER ------------ Heavy Ion Engine > --- PROPULSION ------- Light Treads Light Treads > --- UTILITY ---------- Huge Storage Unit Light Armor Plating Light Armor Plating Light Armor Plating > --- WEAPON ----------- Improved Medium Laser Heavy Assault Rifle > --- INVENTORY -------- Heavy Ion Engine Heavy Ion Engine Light Treads Light Treads Light Treads Light Treads Light Treads Light Treads Light Treads Light Treads Armored Wheel Armored Wheel Armored Wheel Armored Wheel Light Armor Plating Light Armor Plating Light Armor Plating Light Armor Plating Hacking Suite Improved Medium Laser Heavy Assault Rifle Heavy Assault Rifle Grenade Launcher Grenade Launcher Rocket Launcher [Rating: 18] Favorites ----------- Power Heavy Ion Engine Engine Heavy Ion Engine Propulsion Light Treads Treads Light Treads Leg Aluminum Leg Utility Light Armor Plating Storage Huge Storage Unit Protection Light Armor Plating Weapon Heavy Assault Rifle Energy Gun Small Laser Energy Cannon Advanced Beam Cannon Ballistic Gun Heavy Assault Rifle Launcher Rocket Launcher Build | -11 -10 -10 -9 -9 ------- Run | Jun Mat Min Mat Min Slots Evolved 2 | . . . 2 . Power . | . . . . . Propulsion . | . . . . . Utility 2 | . . . 2 . Weapon . | . . . . . Parts Attached 44 | . 11 2 31 . Power 4 | . 1 . 3 . Engine 4 | . 1 . 3 . Core . | . . . . . Reactor . | . . . . . Propulsion 13 | . 4 . 9 . Treads 13 | . 4 . 9 . Leg . | . . . . . Wheel . | . . . . . Hover . | . . . . . Flight . | . . . . . Utility 16 | . 4 2 10 . Device . | . . . . . Storage 2 | . 1 1 . . Processor . | . . . . . Hackware . | . . . . . Protection 14 | . 3 1 10 . Artifact . | . . . . . Weapon 11 | . 2 . 9 . Energy Gun 3 | . . . 3 . Energy Cannon 1 | . . . 1 . Ballistic Gun 5 | . 2 . 3 . Ballistic Cannon . | . . . . . Launcher 2 | . . . 2 . Special Weapon . | . . . . . Impact Weapon . | . . . . . Slashing Weapon . | . . . . . Piercing Weapon . | . . . . . Special Melee Weapon . | . . . . . Unidentified Prototypes 4 | . . . 4 . Parts Lost 14 | . 5 1 8 . Power 2 | . 2 . . . Propulsion 1 | . 1 . . . Utility 10 | . 2 1 7 . Weapon 1 | . . . 1 . Highest Loss Streak 3 | . 3 1 3 . To Critical Strikes . | . . . . . Average Slot Usage (%) 92 | . 97 85 94 30 Engine 8 | . 12 . 9 4 Treads 24 | . 28 28 21 8 Storage 12 | . 14 14 11 4 Protection 23 | . 13 14 29 4 Energy Gun 5 | . 19 . 2 . Ballistic Gun 18 | . 8 28 19 8 Naked Turns 27 | . . . . 27 Heaviest Build 104 | 10 32 89 104 97 Greatest Support 40 | 20 40 40 40 40 Greatest Overweight (x) 2 | . . 2 2 2 Average Overweight (x) 1 | . . . 2 . Largest Inventory Capacity 25 | . 15 25 25 25 Average Capacity 21 | . 10 19 25 14 Most Carried 25 | . 15 15 25 25 Average Carried 19 | . 9 14 23 14 Final Capacity 25 | 8 15 25 25 5 Final Carried 25 | 6 14 15 25 5 Class Distribution -------------------- 100% | Mutant Dominant Class ---------------- Mutant | -10/Materials Mutant | -10/Mines Mutant | -9/Materials Mutant | -9/Mines Resources | -11 -10 -10 -9 -9 ----------- Run | Jun Mat Min Mat Min Matter Collected 1598 | 200 155 118 1111 14 Remotely . | . . . . . Salvage Created 2976 | . 814 109 2053 . Parts 190 | . 55 6 129 . Haulers Intercepted 7 | . 2 . 5 . Recyclers Shooed 1 | . . . 1 . Parts Field Recycled . | . . . . . Retrieved Matter . | . . . . . Parts Self-Destructed . | . . . . . Prevented . | . . . . . Kills | -11 -10 -10 -9 -9 ------- Run | Jun Mat Min Mat Min Combat Hostiles Destroyed 59 | . 18 4 37 . Guns 53 | . 18 4 31 . AOE 6 | . . . 6 . Classes Destroyed 11 | . 6 . 5 . Worker 3 | . 1 . 2 . Builder 3 | . 1 . 2 . Tunneler 1 | . . . 1 . Hauler 7 | . 2 . 5 . Recycler 3 | . . . 3 . Operator 1 | . . . 1 . Watcher 7 | . 2 . 5 . Swarmer 16 | . 3 3 10 . Grunt 33 | . 15 1 17 . Brawler 1 | . . . 1 . Sentry 9 | . . . 9 . Best Kill Streak 11 | . 7 2 11 . Combat Bots Only 7 | . 3 2 7 . Max Kills in Single Turn 5 | . 2 1 5 . Gunslinging 1 | . . . 1 . Exploded 2 | . . . 2 . Melee . | . . . . . Uniques/NPCs Destroyed . | . . . . . Combat | -11 -10 -10 -9 -9 -------- Run | Jun Mat Min Mat Min Damage Taken 3154 | . 912 79 1858 305 Core 522 | . 111 . 177 234 Absorbed by Shields . | . . . . . Core Remaining (%) 77 | 100 . 55 . . Volleys Fired 238 | . 82 5 151 . Largest 2 | . 2 2 2 . Hottest 80 | . 80 46 79 . Shots Fired 469 | . 164 10 295 . Gun 463 | . 164 10 289 . Cannon . | . . . . . Launcher 6 | . . . 6 . Special . | . . . . . Kinetic 350 | . 68 10 272 . Thermal 113 | . 96 . 17 . Explosive 6 | . . . 6 . Electromagnetic . | . . . . . Robot Hit Streak 13 | . 9 3 13 . Robot Miss Streak 6 | . 6 1 4 . Penetration Max . | . . . . . Secondary Targets 10 | . 4 . 6 . Max Gunslinging Chain 1 | . 1 . 1 . Shots Hit Robots 299 | . 103 6 190 . Core Hits 126 | . 43 4 77 2 Critical Kills 2 | . . . 2 . Critical Parts Destroyed . | . . . . . Critical Strikes 3 | . . . 3 . Destroy 3 | . . . 3 . Melee Attacks . | . . . . . Impact . | . . . . . Slashing . | . . . . . Piercing . | . . . . . Sneak Attacks . | . . . . . Combat Hostiles . | . . . . . Follow-up Attacks . | . . . . . Damage Inflicted 4879 | . 1378 96 3390 15 Guns 4390 | . 1371 93 2926 . Cannons . | . . . . . Explosions 461 | . . . 461 . Melee . | . . . . . Ramming 28 | . 7 3 3 15 Kinetic 3448 | . 661 93 2694 . Thermal 942 | . 710 . 232 . Explosive 461 | . . . 461 . Electromagnetic . | . . . . . Impact . | . . . . . Slashing . | . . . . . Piercing . | . . . . . Highest Corruption . | . . . . . Average Corruption . | . . . . . Corruption Purged . | . . . . . Corruption Blocked . | . . . . . Overload Shots . | . . . . . Overflow Damage 30 | . . . 30 . Projectiles . | . . . . . Explosions 30 | . . . 30 . Melee . | . . . . . Knockbacks . | . . . . . Impact . | . . . . . Kinetic . | . . . . . Secondary . | . . . . . Self-Inflicted Damage 28 | . . . 21 7 Shots 1 | . . . 1 . Rammed 11 | . 3 1 3 4 Targets Rammed 12 | . 4 1 3 4 Kicked . | . . . . . Crushed 1 | . 1 . . . Highest Temperature 337 | . 337 . 327 4 Average Temperature 76 | . 99 . 63 3 Received Heat Transfer 1370 | . 504 18 768 80 Effects 3 | . 3 . . . Energy Bleed 2 | . 2 . . . Short Circuit 1 | . 1 . . . Siege Activations . | . . . . . Robots Corrupted . | . . . . . Combat Hostiles . | . . . . . Parts Fried . | . . . . . Impact Corruptions . | . . . . . Robots Melted . | . . . . . Combat Hostiles . | . . . . . Parts Melted 1 | . 1 . . . Heat Transferred 2143 | . 1625 . 518 . Parts Sabotaged . | . . . . . Parts Stolen . | . . . . . Parts Stripped . | . . . . . Power Chain Reactions . | . . . . . Missiles Intercepted . | . . . . . Alert | -11 -10 -10 -9 -9 ------- Run | Jun Mat Min Mat Min Peak Influence 649 | . 313 172 649 245 Initial 245 | . . 87 11 245 Average 208 | . 123 53 281 245 Maximum Alert Level 2 | . 1 . 2 1 Low Security (%) 59 | . 81 100 41 . Level 1 23 | . 18 . 31 100 Level 2 16 | . . . 26 . Level 3 . | . . . . . Level 4 . | . . . . . Level 5 . | . . . . . High Security . | . . . . . Max Security . | . . . . . Squads Dispatched 11 | . 6 . 5 . Investigation 5 | . 2 . 3 . Extermination . | . . . . . Reinforcement 6 | . 4 . 2 . Assault . | . . . . . Garrison . | . . . . . Intercept . | . . . . . Searches Triggered . | . . . . . Construction Impeded . | . . . . . Haulers Reinforced . | . . . . . Active Scanning Responses . | . . . . . Cargo Convoy Interrupts . | . . . . . Stealth | -11 -10 -10 -9 -9 --------- Run | Jun Mat Min Mat Min Distress Signals 6 | . 2 . 4 . Communications Jammed . | . . . . . Distress Signals . | . . . . . Times Spotted 111 | . 33 6 56 16 Peak Tracking Total 15 | . 4 3 5 15 Tactical Retreats 8 | . . 1 6 1 Traps | -11 -10 -10 -9 -9 ------- Run | Jun Mat Min Mat Min Traps Triggered 1 | . . . 1 . Indirectly . | . . . . . Trap Hack Attempts . | . . . . . Triggered . | . . . . . Disarmed . | . . . . . Reprogrammed . | . . . . . Reused . | . . . . . Traps Extracted . | . . . . . Installed . | . . . . . Triggered . | . . . . . Machines | -11 -10 -10 -9 -9 ---------- Run | Jun Mat Min Mat Min Machines Disabled 3 | . . . 3 . Max in Single Turn 1 | . . . 1 . Machines Repaired . | . . . . . Machines Sabotaged . | . . . . . Overloaded Fab Kills . | . . . . . Hacking | -11 -10 -10 -9 -9 --------- Run | Jun Mat Min Mat Min Machines Accessed 14 | . 5 . 9 . Terminals 10 | . 3 . 7 . Fabricators . | . . . . . Repair Stations . | . . . . . Recycling Units 4 | . 2 . 2 . Scanalyzers . | . . . . . Garrison Access . | . . . . . Total Hacks 35 | . 9 . 26 . Successful 16 | . 5 . 11 . Failed 19 | . 4 . 15 . Catastrophic 3 | . 2 . 1 . Database Lockouts . | . . . . . Manual 37 | . 9 . 28 . Terminals 30 | . 7 . 23 . Fabricators . | . . . . . Repair Stations . | . . . . . Recycling Units 5 | . 2 . 3 . Scanalyzers . | . . . . . Garrison Access . | . . . . . Terminal Hacks 7 | . 1 . 6 . Part Schematic 1 | . . . 1 . Robot Analysis 2 | . . . 2 . Terminal Index 1 | . . . 1 . Locate Traps 3 | . 1 . 2 . Fabricator Hacks . | . . . . . Repair Station Hacks . | . . . . . Recycling Unit Hacks . | . . . . . Scanalyzer . | . . . . . Garrison Access Hacks . | . . . . . Unauthorized Hacks 9 | . 4 . 5 . Terminals 5 | . 2 . 3 . Track 1 | . 1 . . . Botnet 2 | . . . 2 . Operators 2 | . 1 . 1 . Fabricators . | . . . . . Repair Stations . | . . . . . Recycling Units 4 | . 2 . 2 . Tunnel 4 | . 2 . 2 . Scanalyzers . | . . . . . Garrison Access . | . . . . . Data Cores Recovered . | . . . . . Used . | . . . . . Hacking Detections 11 | . 3 . 8 . Full Trace Events . | . . . . . Feedback Events . | . . . . . Feedback Blocked . | . . . . . Robot Schematics Acquired . | . . . . . Robots Built . | . . . . . Authchips . | . . . . . Time . | . . . . . Total Robot Build Rating . | . . . . . Part Schematics Acquired 1 | . . . 1 . Parts Built . | . . . . . Authchips . | . . . . . Time . | . . . . . Total Part Build Rating . | . . . . . Parts Repaired . | . . . . . Time . | . . . . . Parts Recycled . | . . . . . Recycled Matter . | . . . . . Retrieved Matter . | . . . . . Retrieved Components . | . . . . . Parts Scanalyzed . | . . . . . Part Schematics Acquired . | . . . . . Parts Damaged . | . . . . . Bothacking | -11 -10 -10 -9 -9 ------------ Run | Jun Mat Min Mat Min Used RIF Installer . | . . . . . Robots Hacked . | . . . . . Non-combat . | . . . . . Combat . | . . . . . Robot Hacks Applied . | . . . . . Relay Couplers Released . | . . . . . Fabnet Peak Effective % . | . . . . . Robots Rewired . | . . . . . Allies Hacked . | . . . . . Hacks Repelled . | . . . . . Allies | -11 -10 -10 -9 -9 -------- Run | Jun Mat Min Mat Min Total Allies . | . . . . . Largest Group . | . . . . . Highest-Rated Group . | . . . . . Highest-Rated Ally . | . . . . . Total Orders . | . . . . . Ally Attacks . | . . . . . Total Damage . | . . . . . Kills . | . . . . . Allies Corrupted . | . . . . . Allies Melted . | . . . . . Intel | -11 -10 -10 -9 -9 ------- Run | Jun Mat Min Mat Min Robot Analysis Total 2 | . . . 2 . Derelict Logs Recovered 1 | . . 1 . . Drone Launches . | . . . . . Drone Recoveries . | . . . . . Exploration | -11 -10 -10 -9 -9 ------------- Run | Jun Mat Min Mat Min Turns Passed 6214 | . 1182 1167 3815 50 Spaces Moved 2148 | 1 538 546 1020 43 Core 36 | . . . . 36 Treads 2111 | . 538 546 1020 7 Legs 1 | 1 . . . . Wheels . | . . . . . Hover . | . . . . . Flight . | . . . . . Fastest Speed 50 | 120 160 160 320 50 Average Speed 247 | 120 160 210 320 93 Slowest Speed 320 | 120 160 320 320 320 Overloaded Moves . | . . . . . Propulsion Burnouts . | . . . . . Robots Hopped . | . . . . . Cave-ins Triggered . | . . . . . Exploration Rate (%) 60 | 3 94 98 96 11 Regions Visited 4 Branch Regions 2 Pre-discovered Areas 6 | . 2 2 2 . Known Exits Taken . | . . . . . Unknown Exits Taken 4 | 1 1 1 1 . Scrap Searched 1 | . . 1 . . Spaces Dug . | . . . . . Terrain Destroyed 37 | . . . 37 . Melee . | . . . . . Projectile . | . . . . . AOE 37 | . . . 37 . Terrain Rammed . | . . . . . Walls Destroyed . | . . . . . Machines Disabled . | . . . . . Actions | -11 -10 -10 -9 -9 --------- Run | Jun Mat Min Mat Min Total 2585 | . 697 556 1280 52 Wait 64 | . 34 . 25 5 Move 2144 | . 537 545 1019 43 Hop . | . . . . . Pick Up 52 | . 19 2 31 . Fast Attach 2 | . 2 . . . Attach 27 | . 8 1 18 . Detach 1 | . 1 . . . Swap 15 | . 1 1 13 . Drop 30 | . 9 1 20 . Fire 238 | . 82 5 151 . Melee . | . . . . . Ram 4 | . . . . 4 Kick . | . . . . . Crush 8 | . 4 1 3 . Escape Stasis . | . . . . . Rewire . | . . . . . Trap . | . . . . . Miscellaneous . | . . . . . Route ------- -11/Junkyard -10/Materials (discovered 5 exits: *Mat x3 / [*Min x2]) -10/Mines (discovered 2 exits: *Mat x2) -9/Materials (discovered 5 exits: [*Mat x3] / [*Min x2]) -9/Mines History --------- Turn | Location | Event 1 | -11/Junkyard | Discovered new exit (range 0) 1 | -11/Junkyard | Entered Materials 308 | -10/Materials | Build established: Mutant 326 | -10/Materials | Discovered new exit (range 12) 440 | -10/Materials | Discovered new exit (range 16) 660 | -10/Materials | Discovered new exit (range 11) 953 | -10/Materials | Discovered new exit (range 10) 985 | -10/Materials | Discovered new exit (range 15) 1094 | -10/Materials | Lost 3 parts (1p1n1u) 1183 | -10/Materials | Entered Mines 1219 | -10/Mines | Met a Derelict bent on vengeance 1239 | -10/Mines | Discovered new exit (range 8) 1467 | -10/Mines | Learned location of Storage (-8) 2042 | -10/Mines | Received a Rocket Launcher from a helpful Derelict 2078 | -10/Mines | Discovered new exit (range 9) 2104 | -10/Mines | Learned location of Zion (-6) 2350 | -10/Mines | Entered Materials 2350 | -9/Materials | Evolved 2 slots: Utility x2 3148 | -9/Materials | Destroyed 7 combat bots 3275 | -9/Materials | Discovered new exit (range 14) 3751 | -9/Materials | Discovered new exit (range 15) 4204 | -9/Materials | Discovered new exit (range 3) 4709 | -9/Materials | Discovered new exit (range 5) 5664 | -9/Materials | Lost 3 parts (3u) 5820 | -9/Materials | Discovered new exit (range 15) 6165 | -9/Materials | Entered Mines 6166 | -9/Mines | Assembled infested the area 6171 | -9/Mines | Assisted by a Guerilla fighting off Assembled 6188 | -9/Mines | Released all parts (7) 6189 | -9/Mines | Core integrity fell below 50% 6214 | -9/Mines | Core integrity fell below 20% 6215 | -9/Mines | Destroyed by as-13982 with Assembled Rifle Last Messages --------------- GOAL=ESCAPE Something is scanning the area. 06166_ ALERT: Infestation in the mines, dispatching Demolisher response squad. 06171_ A derelict emerges from the shadows: "You need to get out of here! I've been tracking a group of Assembled to figure out where they're coming from, and they're closing on this area, come on!" 06188_ Released Lgt. Treads. 06188_ Released Hvy. Ion Engine. 06188_ Released Hvy. Assault Rifle. 06188_ Released Huge Storage Unit. 06188_ Released Imp. Assault Rifle. 06188_ Released Lgt. Armor Plating. 06192_ K-01 Serf collects debris. 06200_ K-01 Serf destroyed. 06205_ K-01 Serf collects debris. 06206_ K-01 Serf destroyed. 06209_ Acquired 14 matter. 06211_ Slammed into as-55967. 06214_ Slammed into as-76368. Map ----- +----------------------------------------------------+ | | | | | | | | | | | | | | | ???????????????????????????????????? | | ???????????????????????????????????? | | ???????????????????????????????????? | | ???????????????????????????????????? | | ???????????????????????????????????? | | ???????????????????????????????????? | | ???????????????????????????????????? | | ???????????????????????????????????? | | ???????????????????????????????????? | | ???????????????????????????????????? | | ???????????????????????????????????? | | ???????????????????????????????????? | | ?###########???????????????????????? | | ?# #?######????????????????? | | ?# ### ##???????????????? | | ?# !=a ## ##??????????????? | | ?# """%""" ## """ #??????????????? | | ?# """*"""a## """ #??????????????? | | ?# """ """a@aa """ ##??????????????? | | ?# a a ###a""" ##??????????????? | | ?# """ """ ## !]= %#######????????? | | ?#a""" """*# !==!] #????????? | | ?# """ """ # ==*=[]= ### #????????? | | ?# aa # ==*=[== #?????????????? | | ?# a # []!###[##?????????????? | | ?########### *##?? #??????????????? | | ??????????# ##??? #??????????????? | | ?????????# ????? #??????????????? | | ????????# ????? #??????????????? | | ????????# ????? #??????????????? | | ????????# ????? #??????????????? | | ????????## ????? #??????????????? | | ?????????## ???????#??????????????? | | ??????????# ??????????????????????? | | ??????????# ???????????????????????? | | ??????????# ???????????????????????? | | ?????????? ???????????????????????? | | ?????????? ???????????????????????? | | ?????????? ????????????????????????? | | ???????????????????????????????????? | | ???????????????????????????????????? | | ???????????????????????????????????? | | ???????????????????????????????????? | +----------------------------------------------------+ Best States ------------- Heat Dissipation 28 Energy Generation 14 Energy Capacity 280 Matter Stores 300 Matter Capacity 300 Sight Range 16 Terrain Scan Density 10 Armor Coverage 450 Evasion (%) 50 Recoil Reduction 2 Authchip Count 2 Item Schematics ----------------- Cargo Storage Unit | -9/Materials | Hacked Robot Schematics ------------------ None Fabricated ------------ Nothing Alien Tech Used ----------------- None Achievements -------------- None Challenges ------------ None Game ------ Seed WarpTachyonMicrothruster Manual? 0 Play Time 00:18:21 Cumulative 346.3 hours Start 2023.05.14 @ 03:36:52 End 2023.05.14 @ 04:29:52 Sessions 5 Manual Loads 0 Difficulty Rogue Special Mode None Game No. 492 Rogue 465 Adventurer 4 Explorer 23 Win Type - Total 19 Types 14/0/2/2/1/0/0/0/0 Lore% 78 Gallery% 92 Achievement% 82 Wizard Run 0 Options --------- ASCII 0 Keyboard 1 Movement Numpad Keybinds 0 Fullscreen 2 Font 18/SmallcapsGlow Map View 76x50 Tactical HUD 1 Map Filters NONE Filters NONE Steam 1 RUN: e0096af7-c2be-407d-ac87-cc988b59fe9c